{"text_format":"3","workbook":"xlsx","n_sheets":26,"sheets":["Inicio","1","2","3","4","5","6","7","8","9","10","11","12","13","14","15","16","17","18","19","20","21","22","23","24","Más información"],"not_rendered":{"images":25,"defined_names":10,"pivot_tables":19},"read":"whole","date_system":"1900"}

{"sheet":"Inicio","index":0,"n_rows":5,"n_cols":1,"rows_kept":5}
["Le damos la bienvenida\nInstrucciones para los lectores de pantalla: Saque más partido a las tablas dinámicas. Una tabla dinámica simple le proporciona un resumen general de sus datos, pero a veces necesita respuestas detalladas a preguntas concretas. En esas situaciones añadir más campos de columna puede resultar de ayuda. \nLas instrucciones indican las celdas a las que tendrá que ir para usar una característica u obtener más información.\nPara empezar, presione CTRL+AVANZAR PÁGINA."]
["Sacar más partido a las tablas dinámicas"]
["Una tabla dinámica simple le proporciona un resumen general de sus datos,\npero a veces necesita respuestas detalladas a preguntas concretas.\nEn esas situaciones añadir más campos de columna puede resultar de ayuda."]
["INFORMACIÓN ÚTIL\n¿No ha realizado el tutorial? Si es así, vaya a Archivo > Nuevo y busque Introducción a las Fórmulas."]
["Vuelva al principio presionando CTRL+Inicio. Para empezar el recorrido, presione CTRL+AVANZAR PÁGINA."]

{"sheet":"1","index":1,"n_rows":17,"n_cols":9,"rows_kept":17}
["En el primer tutorial, le explicamos el concepto de tablas dinámicas. También explicamos cómo puede usarse un campo de fila como una condición que divide un campo de valor.   "]
["Las celdas que se encuentran entre la H10 y la I14 contienen una tabla dinámica que resume los datos que se encuentran en las celdas B8 a E16. La tabla dinámica tiene dos columnas: Comprador e Suma de Importe. La columna Comprador contiene los valores Papá, Mamá, Julia y Total general. La columna Suma de Importe contiene los valores 220 €, 270 €, 810 € y 1.300 €. La columna Comprador está compuesta de un campo de fila y la columna Suma de Importe está compuesta de un campo de valor."]
["Para continuar con este tutorial, presione CTRL+AVANZAR PÁGINA. Para ir a la hoja anterior, presione CTRL+RETROCEDER PÁGINA."]
[]
[]
[]
[]
[]
["Este ejemplo muestra cómo el campo de fila...","Fecha","Comprador","Tipo","Importe"]
["...divide el campo de valor.","2017-01-01","Papá","Regalos",{"v":95,"d":"95 €"}]
[null,"2017-01-15","Mamá","Comida",{"v":325,"d":"325 €"},null,null,"Comprador","Suma de Importe"]
[null,"2017-01-17","Mamá","Entradas",{"v":250,"d":"250 €"},null,null,"Papá",{"v":220,"d":"220 €"}]
[null,"2017-01-21","Papá","Comida",{"v":125,"d":"125 €"},null,null,"Julia",{"v":270,"d":"270 €"}]
[null,"2017-02-02","Mamá","Comida",{"v":235,"d":"235 €"},null,null,"Mamá",{"v":810,"d":"810 €"}]
[null,"2017-02-20","Julia","Música",{"v":20,"d":"20 €"},null,null,"Total general",{"v":1300,"d":"1,300 €"}]
[null,"2017-02-25","Julia","Entradas",{"v":125,"d":"125 €"}]
[null,"2017-02-25","Julia","Deportes",{"v":125,"d":"125 €"}]

{"sheet":"2","index":2,"n_rows":108,"n_cols":7,"rows_kept":108}
["Pero cuando mira por primera vez una Tabla dinámica, es posible que descubra que necesita que le proporcione más respuestas."]
["Cuando mire por primera vez una tabla dinámica, es posible que tenga preguntas como \"¿Cuándo se realizaron estas compras?\", \"¿En qué gastó dinero cada persona?\" o \"¿Qué compró mamá que era tan caro?\"."]
["En este ejemplo, las celdas F11 a G15 muestran la misma tabla dinámica de dos columnas que antes. La columna Comprador es un campo de fila y contiene los valores Papá, Mamá, Julia y Total general. La columna Suma de Importe es el campo de valor, y contiene los valores 220 €, 270 €, 810 € y 1.300 €. "]
["Para continuar con este tutorial, presione CTRL+AVANZAR PÁGINA. Para ir a la hoja anterior, presione CTRL + RETROCEDER PÁGINA."]
[]
[]
[]
[]
[]
[]
[{"$nulls":5},"Comprador","Suma de Importe"]
[{"$nulls":5},"Papá",{"v":220,"d":"220 €"}]
[{"$nulls":5},"Julia",{"v":270,"d":"270 €"}]
[{"$nulls":5},"Mamá",{"v":810,"d":"810 €"}]
[{"$nulls":5},"Total general",{"v":1300,"d":"1,300 €"}]
{"$rows_empty":84}
[null,"Fecha","Comprador","Tipo","Importe"]
[null,"2017-01-01","Papá","Regalos",{"v":95,"d":"95 €"}]
[null,"2017-01-15","Mamá","Comida",{"v":325,"d":"325 €"}]
[null,"2017-01-17","Mamá","Entradas",{"v":250,"d":"250 €"}]
[null,"2017-01-21","Papá","Comida",{"v":125,"d":"125 €"}]
[null,"2017-02-02","Mamá","Comida",{"v":235,"d":"235 €"}]
[null,"2017-02-20","Julia","Música",{"v":20,"d":"20 €"}]
[null,"2017-02-25","Julia","Entradas",{"v":125,"d":"125 €"}]
[null,"2017-02-25","Julia","Deportes",{"v":125,"d":"125 €"}]

{"sheet":"3","index":3,"n_rows":108,"n_cols":7,"rows_kept":108}
["Todas estas son buenas preguntas, pero, por el momento, centrémonos solo en una."]
["¿En qué se gastó el dinero cada persona?"]
["Como referencia, las celdas F11 a G15 muestran la misma tabla dinámica de dos columnas que antes. La columna Comprador es un campo de fila y contiene los valores Papá, Mamá, Julia y Total general. La columna Suma de Importe es el campo de valor, y contiene los valores 220 €, 270 €, 810 € y 1.300 €. "]
["Para continuar con este tutorial, presione CTRL+AVANZAR PÁGINA. Para ir a la hoja anterior, presione CTRL + RETROCEDER PÁGINA."]
[]
[]
[]
[]
[]
[]
[{"$nulls":5},"Comprador","Suma de Importe"]
[{"$nulls":5},"Papá",{"v":220,"d":"220 €"}]
[{"$nulls":5},"Julia",{"v":270,"d":"270 €"}]
[{"$nulls":5},"Mamá",{"v":810,"d":"810 €"}]
[{"$nulls":5},"Total general",{"v":1300,"d":"1,300 €"}]
{"$rows_empty":84}
[null,"Fecha","Comprador","Tipo","Importe"]
[null,"2017-01-01","Papá","Regalos",{"v":95,"d":"95 €"}]
[null,"2017-01-15","Mamá","Comida",{"v":325,"d":"325 €"}]
[null,"2017-01-17","Mamá","Entradas",{"v":250,"d":"250 €"}]
[null,"2017-01-21","Papá","Comida",{"v":125,"d":"125 €"}]
[null,"2017-02-02","Mamá","Comida",{"v":235,"d":"235 €"}]
[null,"2017-02-20","Julia","Música",{"v":20,"d":"20 €"}]
[null,"2017-02-25","Julia","Entradas",{"v":125,"d":"125 €"}]
[null,"2017-02-25","Julia","Deportes",{"v":125,"d":"125 €"}]

{"sheet":"4","index":4,"n_rows":108,"n_cols":9,"rows_kept":108}
["La última pregunta que realizamos fue \"¿En qué se gastó el dinero cada persona?\""]
["Hemos respondido a esa pregunta añadiendo un campo de columna para Tipo. Como resultado, ahora la tabla dinámica tiene cinco columnas nuevas que muestran el tipo de compra que ha realizado cada persona. "]
["Nuestra nueva tabla dinámica ahora va de la celda C10 a la I15, con columnas para Comprador, Comida, Música, Deportes, Entradas, Regalos y Total general. El Comprador y la Total general son los mismos que antes, y las nuevas columnas de detalles van entre ellos."]
["Para continuar con este tutorial, presione CTRL+AVANZAR PÁGINA. Para ir a la hoja anterior, presione CTRL + RETROCEDER PÁGINA."]
[]
[]
[]
[]
[]
[]
[null,null,"Suma de Importe","Tipo"]
[null,null,"Comprador","Comida","Música","Deportes","Entradas","Regalos","Total general"]
[null,null,"Papá",{"v":125,"d":"125 €"},{"$nulls":3},{"v":95,"d":"95 €"},{"v":220,"d":"220 €"}]
[null,null,"Julia",null,{"v":20,"d":"20 €"},{"v":125,"d":"125 €"},{"v":125,"d":"125 €"},null,{"v":270,"d":"270 €"}]
[null,null,"Mamá",{"v":560,"d":"560 €"},null,null,{"v":250,"d":"250 €"},null,{"v":810,"d":"810 €"}]
[null,null,"Total general",{"v":685,"d":"685 €"},{"v":20,"d":"20 €"},{"v":125,"d":"125 €"},{"v":375,"d":"375 €"},{"v":95,"d":"95 €"},{"v":1300,"d":"1,300 €"}]
{"$rows_empty":83}
[null,"Fecha","Comprador","Tipo","Importe"]
[null,"2017-01-01","Papá","Regalos",{"v":95,"d":"95 €"}]
[null,"2017-01-15","Mamá","Comida",{"v":325,"d":"325 €"}]
[null,"2017-01-17","Mamá","Entradas",{"v":250,"d":"250 €"}]
[null,"2017-01-21","Papá","Comida",{"v":125,"d":"125 €"}]
[null,"2017-02-02","Mamá","Comida",{"v":235,"d":"235 €"}]
[null,"2017-02-20","Julia","Música",{"v":20,"d":"20 €"}]
[null,"2017-02-25","Julia","Entradas",{"v":125,"d":"125 €"}]
[null,"2017-02-25","Julia","Deportes",{"v":125,"d":"125 €"}]

{"sheet":"5","index":5,"n_rows":108,"n_cols":9,"rows_kept":108}
["Si la tabla dinámica es difícil de entender, pruebe lo siguiente: Lea desde la izquierda, después desde la parte superior y luego desde abajo. En el ejemplo siguiente, Papá está en la celda C12, Comida por 125 € en la celda D12, Regalos por 95 € en la celda E12 y un Total general de 220 € en la celda I12. Las filas 13 y 14 muestran los detalles de Julia y Mamá y la fila 15 muestra el Total general."]
["Para continuar con este tutorial, presione CTRL+AVANZAR PÁGINA. Para ir a la hoja anterior, presione CTRL + RETROCEDER PÁGINA."]
{"$rows_empty":8}
[null,null,"Suma de Importe","Tipo"]
[null,null,"Comprador","Comida","Regalos","Música","Deportes","Entradas","Total general"]
[null,null,"Papá",{"v":125,"d":"125 €"},{"v":95,"d":"95 €"},{"$nulls":3},{"v":220,"d":"220 €"}]
[null,null,"Julia",null,null,{"v":20,"d":"20 €"},{"v":125,"d":"125 €"},{"v":125,"d":"125 €"},{"v":270,"d":"270 €"}]
[null,null,"Mamá",{"v":560,"d":"560 €"},{"$nulls":3},{"v":250,"d":"250 €"},{"v":810,"d":"810 €"}]
[null,null,"Total general",{"v":685,"d":"685 €"},{"v":95,"d":"95 €"},{"v":20,"d":"20 €"},{"v":125,"d":"125 €"},{"v":375,"d":"375 €"},{"v":1300,"d":"1,300 €"}]
{"$rows_empty":83}
[null,"Fecha","Comprador","Tipo","Importe"]
[null,"2017-01-01","Papá","Regalos",{"v":95,"d":"95 €"}]
[null,"2017-01-15","Mamá","Comida",{"v":325,"d":"325 €"}]
[null,"2017-01-17","Mamá","Entradas",{"v":250,"d":"250 €"}]
[null,"2017-01-21","Papá","Comida",{"v":125,"d":"125 €"}]
[null,"2017-02-02","Mamá","Comida",{"v":235,"d":"235 €"}]
[null,"2017-02-20","Julia","Música",{"v":20,"d":"20 €"}]
[null,"2017-02-25","Julia","Entradas",{"v":125,"d":"125 €"}]
[null,"2017-02-25","Julia","Deportes",{"v":125,"d":"125 €"}]

{"sheet":"6","index":6,"n_rows":3,"n_cols":1,"rows_kept":3}
["No lo haga ahora, pero en un par de pasos trabajará con una tabla dinámica. Lo primero que hará será crear detalles en el campo de columnas. Para hacerlo coloque el campo Tipo en el área del campo de columnas."]
["Una imagen de lista de Campos de tabla dinámica muestra un cursor de flecha arrastrando el campo Tipo al área de columnas."]
["Para continuar con este tutorial, presione CTRL+AVANZAR PÁGINA. Para ir a la hoja anterior, presione CTRL+RETROCEDER PÁGINA."]

{"sheet":"7","index":7,"n_rows":108,"n_cols":8,"rows_kept":108}
["1. El área de tabla dinámica para este ejemplo está en las celdas de la B15 a la C19. Vaya a cualquiera de esas celdas."]
["2. Presione ALT+JZ, L para abrir la lista de Campos de tabla dinámica. El foco se colocará en el cuadro de texto de Buscar por defecto: Editar \"Buscar\""]
["3. Presione las teclas de dirección para seleccionar el Tipo de campo. Cuando lo haya seleccionado, presione la barra espaciadora para agregar el campo Tipo al área de Filas. "]
["4. Presione la tecla TAB para seleccionar el campo Tipo. Presione la tecla Entrar y, a continuación, presione las teclas de dirección para seleccionar Mover a etiquetas de columna y presione Entrar nuevamente para agregar el campo Tipo al área de columnas. Presione ALT+JZ+ L para salir del panel de la lista de Campos de tabla dinámica."]
["Para continuar con este tutorial, presione CTRL+AVANZAR PÁGINA. Para ir a la hoja anterior, presione CTRL+RETROCEDER PÁGINA."]
[]
[]
[]
[{"$nulls":7},{"$f":"IF(AND($B$16=\"Comprador\",$H$19=810),\"Buen trabajo! Ha colocado\",\" \")","v":" "}]
[{"$nulls":7},{"$f":"IF(AND($B$16=\"Comprador\",$H$19=810),\"el primer campo de columna.\",\" \")","v":" "}]
[{"$nulls":7},{"$f":"IF(AND($B$16=\"Comprador\",$H$19=810),\"Haga clic en siguiente para continuar...\",\" \")","v":" "}]
[]
[]
[]
[null,"Comprador","Suma de Importe"]
[null,"Papá",{"v":220,"d":"220 €"}]
[null,"Julia",{"v":270,"d":"270 €"}]
[null,"Mamá",{"v":810,"d":"810 €"}]
[null,"Total general",{"v":1300,"d":"1,300 €"}]
{"$rows_empty":80}
[null,"Fecha","Comprador","Tipo","Importe"]
[null,"2017-01-01","Papá","Regalos",{"v":95,"d":"95 €"}]
[null,"2017-01-15","Mamá","Comida",{"v":325,"d":"325 €"}]
[null,"2017-01-17","Mamá","Entradas",{"v":250,"d":"250 €"}]
[null,"2017-01-21","Papá","Comida",{"v":125,"d":"125 €"}]
[null,"2017-02-02","Mamá","Comida",{"v":235,"d":"235 €"}]
[null,"2017-02-20","Julia","Música",{"v":20,"d":"20 €"}]
[null,"2017-02-25","Julia","Entradas",{"v":125,"d":"125 €"}]
[null,"2017-02-25","Julia","Deportes",{"v":125,"d":"125 €"}]

{"sheet":"8","index":8,"n_rows":108,"n_cols":9,"rows_kept":108}
["Vamos a revisar la tabla dinámica que acaba de crear, pero esta vez hemos agregado algunos colores especiales para diferenciar los campos de fila, columna y valor."]
["El campo de fila va desde la celda C10 a la C13 y está sombreado en amarillo."]
["El campo de columna va desde la celda D9 a la H10 y está sombreado en naranja."]
["El campo de valor va desde la celda D11 a la H13 y está sombreado en azul."]
["Para continuar con este tutorial, presione CTRL+AVANZAR PÁGINA. Para ir a la hoja anterior, presione CTRL + RETROCEDER PÁGINA."]
[]
[]
[]
[]
[null,null,"Suma de Importe","Tipo"]
[null,null,"Comprador","Comida","Regalos","Música","Deportes","Entradas","Total general"]
[null,null,"Papá",{"v":125,"d":"125 €"},{"v":95,"d":"95 €"},{"$nulls":3},{"v":220,"d":"220 €"}]
[null,null,"Julia",null,null,{"v":20,"d":"20 €"},{"v":125,"d":"125 €"},{"v":125,"d":"125 €"},{"v":270,"d":"270 €"}]
[null,null,"Mamá",{"v":560,"d":"560 €"},{"$nulls":3},{"v":250,"d":"250 €"},{"v":810,"d":"810 €"}]
[null,null,"Total general",{"v":685,"d":"685 €"},{"v":95,"d":"95 €"},{"v":20,"d":"20 €"},{"v":125,"d":"125 €"},{"v":375,"d":"375 €"},{"v":1300,"d":"1,300 €"}]
{"$rows_empty":84}
[null,"Fecha","Comprador","Tipo","Importe"]
[null,"2017-01-01","Papá","Regalos",{"v":95,"d":"95 €"}]
[null,"2017-01-15","Mamá","Comida",{"v":325,"d":"325 €"}]
[null,"2017-01-17","Mamá","Entradas",{"v":250,"d":"250 €"}]
[null,"2017-01-21","Papá","Comida",{"v":125,"d":"125 €"}]
[null,"2017-02-02","Mamá","Comida",{"v":235,"d":"235 €"}]
[null,"2017-02-20","Julia","Música",{"v":20,"d":"20 €"}]
[null,"2017-02-25","Julia","Entradas",{"v":125,"d":"125 €"}]
[null,"2017-02-25","Julia","Deportes",{"v":125,"d":"125 €"}]

{"sheet":"9","index":9,"n_rows":3,"n_cols":1,"rows_kept":3}
["Esta es otra forma de pensar sobre ello: El campo de fila está a la izquierda y el campo de columna en la parte superior. Cada uno de ellos proporciona una condición al campo de valor, que las suma."]
["Una imagen conceptual muestra un área de 4 secciones rectangulares con el campo de fila en la parte inferior izquierda en amarillo, el campo de columna en la parte superior derecha en naranja y el campo de valor en la parte inferior derecha en azul."]
["Para continuar con este tutorial, presione CTRL+AVANZAR PÁGINA. Para ir a la hoja anterior, presione CTRL+RETROCEDER PÁGINA."]

{"sheet":"10","index":10,"n_rows":3,"n_cols":1,"rows_kept":3}
["Considérelo así al usar la lista de campos. El campo de fila está a la izquierda y el campo de columna en la parte superior. Cada uno de ellos proporciona una condición al campo de valor, que las suma."]
["Una imagen conceptual muestra la lista de Campos de la tabla dinámica con el campo de fila en la parte inferior izquierda en amarillo, el campo de columna en la parte superior derecha en naranja y el campo de valor en la parte inferior derecha en azul."]
["Para continuar con este tutorial, presione CTRL+AVANZAR PÁGINA. Para ir a la hoja anterior, presione CTRL+RETROCEDER PÁGINA."]

{"sheet":"11","index":11,"n_rows":121,"n_cols":24,"rows_kept":121}
["Un aspecto a tener en cuenta: Si un campo de columna agrega una gran cantidad de columnas a una tabla dinámica la hará muy ancha. "]
["En este ejemplo, la tabla dinámica ahora abarca desde la celda C10 a la X15, ya que el campo de columna agregó 20 columnas nuevas. Eso es una gran cantidad de columnas. Esto hará que la gente tenga que desplazarse mucho."]
["Para continuar con este tutorial, presione CTRL+AVANZAR PÁGINA. Para ir a la hoja anterior, presione CTRL + RETROCEDER PÁGINA."]
[]
[]
[]
[]
[]
[]
[null,null,"Suma de Importe","Tipo"]
[null,null,"Comprador","Libros","Comida","Combustible","Música","Deportes","Entradas","Restaurantes","Electricidad","Médicos","Dentistas","Impuestos","Seguro de salud","Aparcamiento","Electrónica","Tarifa aérea","Ropa","Clases de música","Cuota del club","Seguro del coche","Seguro del hogar","Total general"]
[null,null,"Papá",{"$nulls":4},{"v":1000,"d":"1,000 €"},{"$nulls":5},{"v":500,"d":"500 €"},{"$nulls":3},{"v":500,"d":"500 €"},{"$nulls":5},{"v":2000,"d":"2,000 €"}]
[null,null,"Julia",{"v":250,"d":"250 €"},null,null,{"v":20,"d":"20 €"},null,{"v":125,"d":"125 €"},{"v":20,"d":"20 €"},{"$nulls":5},{"v":20,"d":"20 €"},{"v":125,"d":"125 €"},null,{"v":125,"d":"125 €"},{"v":250,"d":"250 €"},{"$nulls":3},{"v":935,"d":"935 €"}]
[null,null,"Mamá",null,{"v":470,"d":"470 €"},{"v":74,"d":"74 €"},{"$nulls":4},{"v":70,"d":"70 €"},{"v":74,"d":"74 €"},{"v":235,"d":"235 €"},null,{"v":70,"d":"70 €"},{"$nulls":5},{"v":125,"d":"125 €"},{"v":74,"d":"74 €"},{"v":235,"d":"235 €"},{"v":1427,"d":"1,427 €"}]
[null,null,"Total general",{"v":250,"d":"250 €"},{"v":470,"d":"470 €"},{"v":74,"d":"74 €"},{"v":20,"d":"20 €"},{"v":1000,"d":"1,000 €"},{"v":125,"d":"125 €"},{"v":20,"d":"20 €"},{"v":70,"d":"70 €"},{"v":74,"d":"74 €"},{"v":235,"d":"235 €"},{"v":500,"d":"500 €"},{"v":70,"d":"70 €"},{"v":20,"d":"20 €"},{"v":125,"d":"125 €"},{"v":500,"d":"500 €"},{"v":125,"d":"125 €"},{"v":250,"d":"250 €"},{"v":125,"d":"125 €"},{"v":74,"d":"74 €"},{"v":235,"d":"235 €"},{"v":4362,"d":"4,362 €"}]
{"$rows_empty":84}
[null,"Fecha","Comprador","Tipo","Importe"]
[null,"2017-01-17","Papá","Deportes",{"v":1000,"d":"1,000 €"}]
[null,"2017-01-17","Papá","Tarifa aérea",{"v":500,"d":"500 €"}]
[null,"2017-01-17","Papá","Impuestos",{"v":500,"d":"500 €"}]
[null,"2017-02-20","Julia","Música",{"v":20,"d":"20 €"}]
[null,"2017-02-25","Julia","Entradas",{"v":125,"d":"125 €"}]
[null,"2017-01-21","Julia","Libros",{"v":250,"d":"250 €"}]
[null,"2017-02-20","Julia","Restaurantes",{"v":20,"d":"20 €"}]
[null,"2017-02-25","Julia","Ropa",{"v":125,"d":"125 €"}]
[null,"2017-01-21","Julia","Clases de música",{"v":250,"d":"250 €"}]
[null,"2017-02-20","Julia","Aparcamiento",{"v":20,"d":"20 €"}]
[null,"2017-02-25","Julia","Electrónica",{"v":125,"d":"125 €"}]
[null,"2017-01-01","Mamá","Combustible",{"v":74,"d":"74 €"}]
[null,"2017-01-15","Mamá","Comida",{"v":235,"d":"235 €"}]
[null,"2017-01-21","Mamá","Cuota del club",{"v":125,"d":"125 €"}]
[null,"2017-02-02","Mamá","Comida",{"v":235,"d":"235 €"}]
[null,"2017-01-01","Mamá","Médicos",{"v":74,"d":"74 €"}]
[null,"2017-01-15","Mamá","Electricidad",{"v":70,"d":"70 €"}]
[null,"2017-02-02","Mamá","Dentistas",{"v":235,"d":"235 €"}]
[null,"2017-01-01","Mamá","Seguro del coche",{"v":74,"d":"74 €"}]
[null,"2017-01-15","Mamá","Seguro de salud",{"v":70,"d":"70 €"}]
[null,"2017-02-02","Mamá","Seguro del hogar",{"v":235,"d":"235 €"}]

{"sheet":"12","index":12,"n_rows":119,"n_cols":5,"rows_kept":119}
["Hay una alternativa a las tablas dinámicas muy anchas: puede usar un segundo campo de fila en su lugar. Un segundo campo de fila aparecerá con sangría bajo el primer campo de fila."]
["En este ejemplo, hay una tabla dinámica que va desde la celda D8 a la E32. Se muestran Papá, Mamá y Julia como campos de la primera fila en la columna D. Después, los tipos de gastos están debajo como un segundo campo de fila con elementos como Deportes, Tarifas aéreas, Restaurantes, etc."]
["INFORMACIÓN ÚTIL\nUn segundo campo de fila crea una tabla dinámica con orientación vertical en lugar de horizontal. Para algunas personas las tablas dinámicas verticales son más fáciles de leer porque no es necesario desplazarse tanto de un lado a otro."]
["EXCEL DICE\nA veces la gente llama a un segundo campo de fila un \"campo de fila secundario\"."]
["Para continuar con este tutorial, presione CTRL+AVANZAR PÁGINA. Para ir a la hoja anterior, presione CTRL + RETROCEDER PÁGINA."]
[]
[]
[{"$nulls":3},"Etiquetas de fila","Suma de Importe"]
[{"$nulls":3},"Papá",{"v":2000,"d":"2,000 €"}]
[{"$nulls":3},"Deportes",{"v":1000,"d":"1,000 €"}]
[{"$nulls":3},"Impuestos",{"v":500,"d":"500 €"}]
[{"$nulls":3},"Tarifa aérea",{"v":500,"d":"500 €"}]
[{"$nulls":3},"Julia",{"v":935,"d":"935 €"}]
[{"$nulls":3},"Libros",{"v":250,"d":"250 €"}]
[{"$nulls":3},"Música",{"v":20,"d":"20 €"}]
[{"$nulls":3},"Entradas",{"v":125,"d":"125 €"}]
[{"$nulls":3},"Restaurantes",{"v":20,"d":"20 €"}]
[{"$nulls":3},"Aparcamiento",{"v":20,"d":"20 €"}]
[{"$nulls":3},"Electrónica",{"v":125,"d":"125 €"}]
[{"$nulls":3},"Ropa",{"v":125,"d":"125 €"}]
[{"$nulls":3},"Clases de música",{"v":250,"d":"250 €"}]
[{"$nulls":3},"Mamá",{"v":1427,"d":"1,427 €"}]
[{"$nulls":3},"Comida",{"v":470,"d":"470 €"}]
[{"$nulls":3},"Combustible",{"v":74,"d":"74 €"}]
[{"$nulls":3},"Electricidad",{"v":70,"d":"70 €"}]
[{"$nulls":3},"Médicos",{"v":74,"d":"74 €"}]
[{"$nulls":3},"Dentistas",{"v":235,"d":"235 €"}]
[{"$nulls":3},"Seguro del coche",{"v":74,"d":"74 €"}]
[{"$nulls":3},"Cuota del club",{"v":125,"d":"125 €"}]
[{"$nulls":3},"Seguro de salud",{"v":70,"d":"70 €"}]
[{"$nulls":3},"Seguro del hogar",{"v":235,"d":"235 €"}]
[{"$nulls":3},"Total general",{"v":4362,"d":"4,362 €"}]
{"$rows_empty":65}
[null,"Fecha","Comprador","Tipo","Importe"]
[null,"2017-01-17","Papá","Deportes",{"v":1000,"d":"1,000 €"}]
[null,"2017-01-17","Papá","Tarifa aérea",{"v":500,"d":"500 €"}]
[null,"2017-01-17","Papá","Impuestos",{"v":500,"d":"500 €"}]
[null,"2017-02-20","Julia","Música",{"v":20,"d":"20 €"}]
[null,"2017-02-25","Julia","Entradas",{"v":125,"d":"125 €"}]
[null,"2017-01-21","Julia","Libros",{"v":250,"d":"250 €"}]
[null,"2017-02-20","Julia","Restaurantes",{"v":20,"d":"20 €"}]
[null,"2017-02-25","Julia","Ropa",{"v":125,"d":"125 €"}]
[null,"2017-01-21","Julia","Clases de música",{"v":250,"d":"250 €"}]
[null,"2017-02-20","Julia","Aparcamiento",{"v":20,"d":"20 €"}]
[null,"2017-02-25","Julia","Electrónica",{"v":125,"d":"125 €"}]
[null,"2017-01-01","Mamá","Combustible",{"v":74,"d":"74 €"}]
[null,"2017-01-15","Mamá","Comida",{"v":235,"d":"235 €"}]
[null,"2017-01-21","Mamá","Cuota del club",{"v":125,"d":"125 €"}]
[null,"2017-02-02","Mamá","Comida",{"v":235,"d":"235 €"}]
[null,"2017-01-01","Mamá","Médicos",{"v":74,"d":"74 €"}]
[null,"2017-01-15","Mamá","Electricidad",{"v":70,"d":"70 €"}]
[null,"2017-02-02","Mamá","Dentistas",{"v":235,"d":"235 €"}]
[null,"2017-01-01","Mamá","Seguro del coche",{"v":74,"d":"74 €"}]
[null,"2017-01-15","Mamá","Seguro de salud",{"v":70,"d":"70 €"}]
[null,"2017-02-02","Mamá","Seguro del hogar",{"v":235,"d":"235 €"}]

{"sheet":"13","index":13,"n_rows":3,"n_cols":1,"rows_kept":3}
["En la siguiente hoja agregará un segundo campo de fila. Y podrá hacerlo colocando el campo Tipo en el campo Comprador en el campo de filas."]
["Imagen de la lista de Campos de tabla dinámica en la que se muestra un cursor de flecha que arrastra el campo Tipo hasta el área de Filas."]
["Para continuar con este tutorial, presione CTRL+AVANZAR PÁGINA. Para ir a la hoja anterior, presione CTRL+RETROCEDER PÁGINA."]

{"sheet":"14","index":14,"n_rows":122,"n_cols":9,"rows_kept":122}
["1. El área de tabla dinámica para este ejemplo está en las celdas de la B15 a la C19. Vaya a cualquiera de esas celdas. "]
["2. Presione ALT+JT, L para abrir la lista de campos de tabla dinámica. El enfoque predeterminado será el cuadro de texto Búsqueda: \"Escriba aquí las palabras para buscarlas\" y editarlas. No escriba nada; en su lugar, pulse una vez. NOTA: Si no se inicia la lista de campos, presione ALT+JT y después L de nuevo."]
["3. Presione las teclas de flecha para desplazarse hasta el campo Tipo. Presione la barra espaciadora para agregar el campo Tipo al área de Filas. "]
["4. Presione la tecla ESC para salir del panel de Campos de tabla dinámica. "]
["Para continuar con este tutorial, presione CTRL+AVANZAR PÁGINA. Para ir a la hoja anterior, presione CTRL+RETROCEDER PÁGINA.",{"$nulls":7},{"$f":"IF(AND($B$19=\"Tarifa aérea\",$C$35=74),\"Bien hecho! Ha agregado\",\" \")","v":" "}]
[{"$nulls":8},{"$f":"IF(AND($B$19=\"Tarifa aérea\",$C$35=74),\"un segundo campo de fila a\",\" \")","v":" "}]
[{"$nulls":8},{"$f":"IF(AND($B$19=\"Tarifa aérea\",$C$35=74),\"la tabla dinámica. Desplácese \",\" \")","v":" "}]
[{"$nulls":8},{"$f":"IF(AND($B$19=\"Tarifa aérea\",$C$35=74),\"hacia abajo y haga clic en siguiente...\",\" \")","v":" "}]
[]
[]
[]
[]
[]
[]
[null,"Etiquetas de fila","Suma de Importe"]
[null,"Papá",{"v":2000,"d":"2,000 €"}]
[null,"Julia",{"v":935,"d":"935 €"}]
[null,"Mamá",{"v":1427,"d":"1,427 €"}]
[null,"Total general",{"v":4362,"d":"4,362 €"}]
{"$rows_empty":81}
[null,"Fecha","Comprador","Tipo","Importe"]
[null,"2017-01-17","Papá","Deportes",{"v":1000,"d":"1,000 €"}]
[null,"2017-01-17","Papá","Tarifa aérea",{"v":500,"d":"500 €"}]
[null,"2017-01-17","Papá","Impuestos",{"v":500,"d":"500 €"}]
[null,"2017-02-20","Julia","Música",{"v":20,"d":"20 €"}]
[null,"2017-02-25","Julia","Entradas",{"v":125,"d":"125 €"}]
[null,"2017-01-21","Julia","Libros",{"v":250,"d":"250 €"}]
[null,"2017-02-20","Julia","Restaurantes",{"v":20,"d":"20 €"}]
[null,"2017-02-25","Julia","Ropa",{"v":125,"d":"125 €"}]
[null,"2017-01-21","Julia","Clases de música",{"v":250,"d":"250 €"}]
[null,"2017-02-20","Julia","Aparcamiento",{"v":20,"d":"20 €"}]
[null,"2017-02-25","Julia","Electrónica",{"v":125,"d":"125 €"}]
[null,"2017-01-01","Mamá","Combustible",{"v":74,"d":"74 €"}]
[null,"2017-01-15","Mamá","Comida",{"v":235,"d":"235 €"}]
[null,"2017-01-21","Mamá","Cuota del club",{"v":125,"d":"125 €"}]
[null,"2017-02-02","Mamá","Comida",{"v":235,"d":"235 €"}]
[null,"2017-01-01","Mamá","Médicos",{"v":74,"d":"74 €"}]
[null,"2017-01-15","Mamá","Electricidad",{"v":70,"d":"70 €"}]
[null,"2017-02-02","Mamá","Dentistas",{"v":235,"d":"235 €"}]
[null,"2017-01-01","Mamá","Seguro del coche",{"v":74,"d":"74 €"}]
[null,"2017-01-15","Mamá","Seguro de salud",{"v":70,"d":"70 €"}]
[null,"2017-02-02","Mamá","Seguro del hogar",{"v":235,"d":"235 €"}]

{"sheet":"15","index":15,"n_rows":121,"n_cols":7,"rows_kept":121}
["Si necesita simplificar la tabla dinámica, puede contraer los datos del segundo campo de fila y sacarlos de la vista. "]
["La tabla dinámica para este ejemplo está en las celdas de la F7 a la G31. Seleccione la celda F8 para elegir el primer campo de fila para Padre. Después, presione Alt+JZ > E para expandir el segundo campo, o C para contraerlo."]
["Para continuar con este tutorial, presione CTRL+AVANZAR PÁGINA. Para ir a la hoja anterior, presione CTRL + RETROCEDER PÁGINA."]
[]
[]
[{"$nulls":5},{"$f":"IF(AND($F$9=\"Julia\",$G$9=935),\"Muy bien!\",\" \")","v":" "}]
[{"$nulls":5},"Etiquetas de fila","Suma de Importe"]
[{"$nulls":5},"Papá",{"v":2000,"d":"2,000 €"}]
[{"$nulls":5},"Deportes",{"v":1000,"d":"1,000 €"}]
[{"$nulls":5},"Impuestos",{"v":500,"d":"500 €"}]
[{"$nulls":5},"Tarifa aérea",{"v":500,"d":"500 €"}]
[{"$nulls":5},"Julia",{"v":935,"d":"935 €"}]
[{"$nulls":5},"Libros",{"v":250,"d":"250 €"}]
[{"$nulls":5},"Restaurantes",{"v":20,"d":"20 €"}]
[{"$nulls":5},"Electrónica",{"v":125,"d":"125 €"}]
[{"$nulls":5},"Música",{"v":20,"d":"20 €"}]
[{"$nulls":5},"Aparcamiento",{"v":20,"d":"20 €"}]
[{"$nulls":5},"Entradas",{"v":125,"d":"125 €"}]
[{"$nulls":5},"Ropa",{"v":125,"d":"125 €"}]
[{"$nulls":5},"Clases de música",{"v":250,"d":"250 €"}]
[{"$nulls":5},"Mamá",{"v":1427,"d":"1,427 €"}]
[{"$nulls":5},"Seguro del coche",{"v":74,"d":"74 €"}]
[{"$nulls":5},"Dentistas",{"v":235,"d":"235 €"}]
[{"$nulls":5},"Electricidad",{"v":70,"d":"70 €"}]
[{"$nulls":5},"Comida",{"v":470,"d":"470 €"}]
[{"$nulls":5},"Combustible",{"v":74,"d":"74 €"}]
[{"$nulls":5},"Médicos",{"v":74,"d":"74 €"}]
[{"$nulls":5},"Cuota del club",{"v":125,"d":"125 €"}]
[{"$nulls":5},"Seguro de salud",{"v":70,"d":"70 €"}]
[{"$nulls":5},"Seguro del hogar",{"v":235,"d":"235 €"}]
[{"$nulls":5},"Total general",{"v":4362,"d":"4,362 €"}]
{"$rows_empty":68}
[null,"Fecha","Comprador","Tipo","Importe"]
[null,"2017-01-17","Papá","Deportes",{"v":1000,"d":"1,000 €"}]
[null,"2017-01-17","Papá","Tarifa aérea",{"v":500,"d":"500 €"}]
[null,"2017-01-17","Papá","Impuestos",{"v":500,"d":"500 €"}]
[null,"2017-02-20","Julia","Música",{"v":20,"d":"20 €"}]
[null,"2017-02-25","Julia","Entradas",{"v":125,"d":"125 €"}]
[null,"2017-01-21","Julia","Libros",{"v":250,"d":"250 €"}]
[null,"2017-02-20","Julia","Restaurantes",{"v":20,"d":"20 €"}]
[null,"2017-02-25","Julia","Ropa",{"v":125,"d":"125 €"}]
[null,"2017-01-21","Julia","Clases de música",{"v":250,"d":"250 €"}]
[null,"2017-02-20","Julia","Aparcamiento",{"v":20,"d":"20 €"}]
[null,"2017-02-25","Julia","Electrónica",{"v":125,"d":"125 €"}]
[null,"2017-01-01","Mamá","Combustible",{"v":74,"d":"74 €"}]
[null,"2017-01-15","Mamá","Comida",{"v":235,"d":"235 €"}]
[null,"2017-01-21","Mamá","Cuota del club",{"v":125,"d":"125 €"}]
[null,"2017-02-02","Mamá","Comida",{"v":235,"d":"235 €"}]
[null,"2017-01-01","Mamá","Médicos",{"v":74,"d":"74 €"}]
[null,"2017-01-15","Mamá","Electricidad",{"v":70,"d":"70 €"}]
[null,"2017-02-02","Mamá","Dentistas",{"v":235,"d":"235 €"}]
[null,"2017-01-01","Mamá","Seguro del coche",{"v":74,"d":"74 €"}]
[null,"2017-01-15","Mamá","Seguro de salud",{"v":70,"d":"70 €"}]
[null,"2017-02-02","Mamá","Seguro del hogar",{"v":235,"d":"235 €"}]

{"sheet":"16","index":16,"n_rows":121,"n_cols":7,"rows_kept":121}
["También puede contraer o expandir el segundo campo de fila completo para simplificar la tabla dinámica aún más."]
["Esta es la clave"]
["Seleccione el rango de datos de tabla dinámica que está entre las celdas F7 a G31 y vaya a ALT+JZ > C para contraer el grupo completo. En cambio, ALT+JZ > E expandirá el grupo completo."]
["Para continuar con este tutorial, presione CTRL+AVANZAR PÁGINA. Para ir a la hoja anterior, presione CTRL + RETROCEDER PÁGINA."]
[]
[{"$nulls":5},{"$f":"IF(AND($F$9=\"Julia\",$G$9=935),\"Genial!\",\" \")","v":" "}]
[{"$nulls":5},"Etiquetas de fila","Suma de Importe"]
[{"$nulls":5},"Papá",{"v":2000,"d":"2,000 €"}]
[{"$nulls":5},"Deportes",{"v":1000,"d":"1,000 €"}]
[{"$nulls":5},"Impuestos",{"v":500,"d":"500 €"}]
[{"$nulls":5},"Tarifa aérea",{"v":500,"d":"500 €"}]
[{"$nulls":5},"Julia",{"v":935,"d":"935 €"}]
[{"$nulls":5},"Libros",{"v":250,"d":"250 €"}]
[{"$nulls":5},"Restaurantes",{"v":20,"d":"20 €"}]
[{"$nulls":5},"Electrónica",{"v":125,"d":"125 €"}]
[{"$nulls":5},"Música",{"v":20,"d":"20 €"}]
[{"$nulls":5},"Aparcamiento",{"v":20,"d":"20 €"}]
[{"$nulls":5},"Entradas",{"v":125,"d":"125 €"}]
[{"$nulls":5},"Ropa",{"v":125,"d":"125 €"}]
[{"$nulls":5},"Clases de música",{"v":250,"d":"250 €"}]
[{"$nulls":5},"Mamá",{"v":1427,"d":"1,427 €"}]
[{"$nulls":5},"Seguro del coche",{"v":74,"d":"74 €"}]
[{"$nulls":5},"Dentistas",{"v":235,"d":"235 €"}]
[{"$nulls":5},"Electricidad",{"v":70,"d":"70 €"}]
[{"$nulls":5},"Comida",{"v":470,"d":"470 €"}]
[{"$nulls":5},"Combustible",{"v":74,"d":"74 €"}]
[{"$nulls":5},"Médicos",{"v":74,"d":"74 €"}]
[{"$nulls":5},"Cuota del club",{"v":125,"d":"125 €"}]
[{"$nulls":5},"Seguro de salud",{"v":70,"d":"70 €"}]
[{"$nulls":5},"Seguro del hogar",{"v":235,"d":"235 €"}]
[{"$nulls":5},"Total general",{"v":4362,"d":"4,362 €"}]
{"$rows_empty":68}
[null,"Fecha","Comprador","Tipo","Importe"]
[null,"2017-01-17","Papá","Deportes",{"v":1000,"d":"1,000 €"}]
[null,"2017-01-17","Papá","Tarifa aérea",{"v":500,"d":"500 €"}]
[null,"2017-01-17","Papá","Impuestos",{"v":500,"d":"500 €"}]
[null,"2017-02-20","Julia","Música",{"v":20,"d":"20 €"}]
[null,"2017-02-25","Julia","Entradas",{"v":125,"d":"125 €"}]
[null,"2017-01-21","Julia","Libros",{"v":250,"d":"250 €"}]
[null,"2017-02-20","Julia","Restaurantes",{"v":20,"d":"20 €"}]
[null,"2017-02-25","Julia","Ropa",{"v":125,"d":"125 €"}]
[null,"2017-01-21","Julia","Clases de música",{"v":250,"d":"250 €"}]
[null,"2017-02-20","Julia","Aparcamiento",{"v":20,"d":"20 €"}]
[null,"2017-02-25","Julia","Electrónica",{"v":125,"d":"125 €"}]
[null,"2017-01-01","Mamá","Combustible",{"v":74,"d":"74 €"}]
[null,"2017-01-15","Mamá","Comida",{"v":235,"d":"235 €"}]
[null,"2017-01-21","Mamá","Cuota del club",{"v":125,"d":"125 €"}]
[null,"2017-02-02","Mamá","Comida",{"v":235,"d":"235 €"}]
[null,"2017-01-01","Mamá","Médicos",{"v":74,"d":"74 €"}]
[null,"2017-01-15","Mamá","Electricidad",{"v":70,"d":"70 €"}]
[null,"2017-02-02","Mamá","Dentistas",{"v":235,"d":"235 €"}]
[null,"2017-01-01","Mamá","Seguro del coche",{"v":74,"d":"74 €"}]
[null,"2017-01-15","Mamá","Seguro de salud",{"v":70,"d":"70 €"}]
[null,"2017-02-02","Mamá","Seguro del hogar",{"v":235,"d":"235 €"}]

{"sheet":"17","index":17,"n_rows":107,"n_cols":13,"rows_kept":107}
["También puede tener más de un campo de columna. También pueden contraerse o expandirse."]
["La tabla dinámica para este ejemplo va desde las celdas B13 a M19. En este caso, tenemos una categoría Tipo en la sección de Columnas, que incluye los elementos de Comida y Suministros."]
["PRUEBE ESTO\nSeleccione Comida en la celda C14 y vaya a ALT+JZ > C para contraer todo el campo. ALT+JZ > E lo expandirá."]
["Para continuar con este tutorial, presione CTRL+AVANZAR PÁGINA. Para ir a la hoja anterior, presione CTRL+RETROCEDER PÁGINA."]
{"$rows_empty":7}
[null,null,{"$f":"IF(AND($C$16=398,$D$15=\"Ene\"),\"Bien hecho!\",\" \")","v":" "}]
[null,"Suma de Importe","Etiquetas de columna"]
[null,null,"Comida",{"$nulls":3},"Total Comida","Suministros",{"$nulls":3},"Total Suministros","Total general"]
[null,"Etiquetas de fila","Ene","Feb","Mar","Abr",null,"Ene","Feb","Mar","Abr"]
[null,"Julia",{"v":74,"d":"74 €"},{"v":74,"d":"74 €"},{"v":125,"d":"125 €"},{"v":125,"d":"125 €"},{"v":398,"d":"398 €"},{"$nulls":5},{"v":398,"d":"398 €"}]
[null,"Papá",{"v":235,"d":"235 €"},{"v":235,"d":"235 €"},{"v":235,"d":"235 €"},{"v":74,"d":"74 €"},{"v":779,"d":"779 €"},{"$nulls":5},{"v":779,"d":"779 €"}]
[null,"Mamá",{"$nulls":5},{"v":1000,"d":"1,000 €"},{"v":1000,"d":"1,000 €"},{"v":20,"d":"20 €"},{"v":70,"d":"70 €"},{"v":2090,"d":"2,090 €"},{"v":2090,"d":"2,090 €"}]
[null,"Total general",{"v":309,"d":"309 €"},{"v":309,"d":"309 €"},{"v":360,"d":"360 €"},{"v":199,"d":"199 €"},{"v":1177,"d":"1,177 €"},{"v":1000,"d":"1,000 €"},{"v":1000,"d":"1,000 €"},{"v":20,"d":"20 €"},{"v":70,"d":"70 €"},{"v":2090,"d":"2,090 €"},{"v":3267,"d":"3,267 €"}]
{"$rows_empty":75}
[null,"Mes","Comprador","Tipo","Importe"]
[null,"Ene","Julia","Comida",{"v":74,"d":"74 €"}]
[null,"Ene","Papá","Comida",{"v":235,"d":"235 €"}]
[null,"Ene","Mamá","Suministros",{"v":1000,"d":"1,000 €"}]
[null,"Feb","Julia","Comida",{"v":74,"d":"74 €"}]
[null,"Feb","Papá","Comida",{"v":235,"d":"235 €"}]
[null,"Feb","Mamá","Suministros",{"v":1000,"d":"1,000 €"}]
[null,"Mar","Julia","Comida",{"v":125,"d":"125 €"}]
[null,"Mar","Papá","Comida",{"v":235,"d":"235 €"}]
[null,"Mar","Mamá","Suministros",{"v":20,"d":"20 €"}]
[null,"Abr","Julia","Comida",{"v":125,"d":"125 €"}]
[null,"Abr","Papá","Comida",{"v":74,"d":"74 €"}]
[null,"Abr","Mamá","Suministros",{"v":70,"d":"70 €"}]

{"sheet":"18","index":18,"n_rows":146,"n_cols":5,"rows_kept":146}
["Es importante tener en cuenta lo siguiente: Si necesita más información, puede agregar muchos más campos de fila o de columna. En este ejemplo hay tres campos de fila."]
["La tabla dinámica para este ejemplo abarca desde la celda D8 a la E29 y tiene campos para Temporada, Comprador y Tipo en la columna D, y el Suma de Importe en la columna E. "]
["SUGERENCIA DEL EXPERTO\nSolo porque pueda agregar un conjunto de campos, no significa que deba hacerlo. En este ejemplo funciona correctamente. Pero a veces demasiados campos, con todas sus sangrías, pueden hacer que la tabla dinámica sea muy complicada de comprender para otros usuarios. "]
["Para continuar con este tutorial, presione CTRL+AVANZAR PÁGINA. Para ir a la hoja anterior, presione CTRL+RETROCEDER PÁGINA."]
[]
[]
[]
[{"$nulls":3},"Etiquetas de fila","Suma de Importe"]
[{"$nulls":3},"Otoño",{"v":5425,"d":"5,425 €"}]
[{"$nulls":3},"Mamá",{"v":5425,"d":"5,425 €"}]
[{"$nulls":3},"Seguro",{"v":1272,"d":"1,272 €"}]
[{"$nulls":3},"Alquiler",{"v":3220,"d":"3,220 €"}]
[{"$nulls":3},"Suministros",{"v":530,"d":"530 €"}]
[{"$nulls":3},"Utilidades",{"v":403,"d":"403 €"}]
[{"$nulls":3},"Primavera",{"v":4760,"d":"4,760 €"}]
[{"$nulls":3},"Papá",{"v":4760,"d":"4,760 €"}]
[{"$nulls":3},"Seguro",{"v":1040,"d":"1,040 €"}]
[{"$nulls":3},"Alquiler",{"v":2400,"d":"2,400 €"}]
[{"$nulls":3},"Suministros",{"v":1320,"d":"1,320 €"}]
[{"$nulls":3},"Verano",{"v":3473,"d":"3,473 €"}]
[{"$nulls":3},"Mamá",{"v":3473,"d":"3,473 €"}]
[{"$nulls":3},"Seguro",{"v":1080,"d":"1,080 €"}]
[{"$nulls":3},"Alquiler",{"v":1260,"d":"1,260 €"}]
[{"$nulls":3},"Suministros",{"v":1133,"d":"1,133 €"}]
[{"$nulls":3},"Invierno",{"v":4100,"d":"4,100 €"}]
[{"$nulls":3},"Papá",{"v":4100,"d":"4,100 €"}]
[{"$nulls":3},"Seguro",{"v":1030,"d":"1,030 €"}]
[{"$nulls":3},"Alquiler",{"v":1420,"d":"1,420 €"}]
[{"$nulls":3},"Suministros",{"v":1650,"d":"1,650 €"}]
[{"$nulls":3},"Total general",{"v":17758,"d":"17,758 €"}]
{"$rows_empty":67}
[null,"Comprador","Temporada","Tipo","Importe"]
[null,"Papá","Invierno","Seguro",{"v":300,"d":"300 €"}]
[null,"Papá","Invierno","Alquiler",{"v":200,"d":"200 €"}]
[null,"Papá","Invierno","Suministros",{"v":400,"d":"400 €"}]
[null,"Papá","Invierno","Seguro",{"v":300,"d":"300 €"}]
[null,"Papá","Invierno","Alquiler",{"v":800,"d":"800 €"}]
[null,"Papá","Invierno","Suministros",{"v":400,"d":"400 €"}]
[null,"Papá","Invierno","Seguro",{"v":200,"d":"200 €"}]
[null,"Papá","Invierno","Alquiler",{"v":300,"d":"300 €"}]
[null,"Papá","Invierno","Suministros",{"v":450,"d":"450 €"}]
[null,"Papá","Invierno","Seguro",{"v":230,"d":"230 €"}]
[null,"Papá","Invierno","Alquiler",{"v":120,"d":"120 €"}]
[null,"Papá","Invierno","Suministros",{"v":400,"d":"400 €"}]
[null,"Papá","Primavera","Seguro",{"v":210,"d":"210 €"}]
[null,"Papá","Primavera","Alquiler",{"v":300,"d":"300 €"}]
[null,"Papá","Primavera","Suministros",{"v":400,"d":"400 €"}]
[null,"Papá","Primavera","Seguro",{"v":230,"d":"230 €"}]
[null,"Papá","Primavera","Alquiler",{"v":900,"d":"900 €"}]
[null,"Papá","Primavera","Suministros",{"v":300,"d":"300 €"}]
[null,"Papá","Primavera","Seguro",{"v":200,"d":"200 €"}]
[null,"Papá","Primavera","Alquiler",{"v":1000,"d":"1,000 €"}]
[null,"Papá","Primavera","Suministros",{"v":220,"d":"220 €"}]
[null,"Papá","Primavera","Seguro",{"v":400,"d":"400 €"}]
[null,"Papá","Primavera","Alquiler",{"v":200,"d":"200 €"}]
[null,"Papá","Primavera","Suministros",{"v":400,"d":"400 €"}]
[null,"Mamá","Verano","Seguro",{"v":100,"d":"100 €"}]
[null,"Mamá","Verano","Alquiler",{"v":30,"d":"30 €"}]
[null,"Mamá","Verano","Suministros",{"v":123,"d":"123 €"}]
[null,"Mamá","Verano","Seguro",{"v":300,"d":"300 €"}]
[null,"Mamá","Verano","Alquiler",{"v":350,"d":"350 €"}]
[null,"Mamá","Verano","Suministros",{"v":230,"d":"230 €"}]
[null,"Mamá","Verano","Seguro",{"v":120,"d":"120 €"}]
[null,"Mamá","Verano","Alquiler",{"v":640,"d":"640 €"}]
[null,"Mamá","Verano","Suministros",{"v":530,"d":"530 €"}]
[null,"Mamá","Verano","Seguro",{"v":560,"d":"560 €"}]
[null,"Mamá","Verano","Alquiler",{"v":240,"d":"240 €"}]
[null,"Mamá","Verano","Suministros",{"v":250,"d":"250 €"}]
[null,"Mamá","Otoño","Seguro",{"v":62,"d":"62 €"}]
[null,"Mamá","Otoño","Alquiler",{"v":600,"d":"600 €"}]
[null,"Mamá","Otoño","Suministros",{"v":340,"d":"340 €"}]
[null,"Mamá","Otoño","Seguro",{"v":205,"d":"205 €"}]
[null,"Mamá","Otoño","Alquiler",{"v":500,"d":"500 €"}]
[null,"Mamá","Otoño","Utilidades",{"v":403,"d":"403 €"}]
[null,"Mamá","Otoño","Seguro",{"v":503,"d":"503 €"}]
[null,"Mamá","Otoño","Alquiler",{"v":2000,"d":"2,000 €"}]
[null,"Mamá","Otoño","Suministros",{"v":140,"d":"140 €"}]
[null,"Mamá","Otoño","Seguro",{"v":502,"d":"502 €"}]
[null,"Mamá","Otoño","Alquiler",{"v":120,"d":"120 €"}]
[null,"Mamá","Otoño","Suministros",{"v":50,"d":"50 €"}]

{"sheet":"19","index":19,"n_rows":55,"n_cols":5,"rows_kept":55}
["¿Desea ver más procedimientos? Aproveche para revisar los datos siguientes en las celdas B7 a E55. Cuando haya acabado, vaya a la siguiente hoja y practicará lo que ha aprendido hasta el momento. "]
["No es necesario revisar todas las filas de datos. Revise solo los nombres de campo en la fila 7. Trabajará con ellos en la siguiente hoja. "]
["Para continuar con este tutorial, presione CTRL+AVANZAR PÁGINA. Para ir a la hoja anterior, presione CTRL+RETROCEDER PÁGINA."]
[]
[]
[]
[null,"Temporada","Representante de ventas","Producto","Unidades vendidas"]
[null,"Invierno","Desiré","Naranjas",300]
[null,"Invierno","Jorge","Uvas",200]
[null,"Invierno","David","Manzanas",400]
[null,"Invierno","Desiré","Plátanos",300]
[null,"Invierno","Jorge","Naranjas",800]
[null,"Invierno","David","Uvas",400]
[null,"Invierno","Desiré","Manzanas",200]
[null,"Invierno","Jorge","Plátanos",300]
[null,"Invierno","David","Naranjas",450]
[null,"Invierno","Desiré","Uvas",230]
[null,"Invierno","Jorge","Manzanas",120]
[null,"Invierno","David","Plátanos",400]
[null,"Primavera","Desiré","Remolachas",210]
[null,"Primavera","Jorge","Patatas",300]
[null,"Primavera","David","Lechuga",400]
[null,"Primavera","Desiré","Rábanos",230]
[null,"Primavera","Jorge","Remolachas",900]
[null,"Primavera","David","Patatas",300]
[null,"Primavera","Desiré","Lechuga",200]
[null,"Primavera","Jorge","Rábanos",1000]
[null,"Primavera","David","Remolachas",220]
[null,"Primavera","Desiré","Patatas",400]
[null,"Primavera","Jorge","Lechuga",200]
[null,"Primavera","David","Rábanos",400]
[null,"Verano","Desiré","Arándanos",100]
[null,"Verano","Jorge","Fresas",30]
[null,"Verano","David","Uvas",123]
[null,"Verano","Desiré","Calabazas",300]
[null,"Verano","Jorge","Arándanos",350]
[null,"Verano","David","Fresas",230]
[null,"Verano","Desiré","Uvas",120]
[null,"Verano","Jorge","Calabazas",640]
[null,"Verano","David","Arándanos",530]
[null,"Verano","Desiré","Fresas",560]
[null,"Verano","Jorge","Uvas",240]
[null,"Verano","David","Calabazas",250]
[null,"Otoño","Desiré","Calabacín",62]
[null,"Otoño","Jorge","Calabacita",600]
[null,"Otoño","David","Manzanas",340]
[null,"Otoño","Desiré","Naranjas",205]
[null,"Otoño","Jorge","Calabacín",500]
[null,"Otoño","David","Calabacita",403]
[null,"Otoño","Desiré","Manzanas",503]
[null,"Otoño","Jorge","Naranjas",2000]
[null,"Otoño","David","Calabacín",140]
[null,"Otoño","Desiré","Calabacita",502]
[null,"Otoño","Jorge","Manzanas",120]
[null,"Otoño","David","Naranjas",50]

{"sheet":"20","index":20,"n_rows":19,"n_cols":9,"rows_kept":19}
["1. El área de tabla dinámica para este ejemplo está en las celdas de la B14 a la C19. Vaya a cualquiera de esas celdas. \n\n"]
["2. Presione ALT+JZ, L para abrir la lista de Campos de tabla dinámica. El enfoque predeterminado será el cuadro de texto Buscar: \"Escriba aquí las palabras para buscarlas\" y editarlas. No escriba nada; en su lugar, pulse una vez. NOTA: Si no se inicia la lista de campos, presione ALT+JZ y después L de nuevo."]
["3. Presione las teclas de flecha para desplazarse hasta el campo Representante de ventas. Presione la barra espaciadora para agregar el campo Representante de ventas al área de Filas. Si desea mostrar los detalles del Representante de ventas en el área de Columnas, use la tecla TAB para ir al campo Representante de ventas en la sección de fila, después presione la barra espaciadora y seleccione \"Mover a etiquetas de columna\". Presione la tecla ESC para salir del panel de Campos de tabla dinámica. "]
["4. Determine quién vendió más artículos en otoño, después seleccione en la celda I8. "]
["Para continuar con este tutorial, presione CTRL+AVANZAR PÁGINA. Para ir a la hoja anterior, presione CTRL+RETROCEDER PÁGINA."]
[]
[{"$nulls":8},"Seleccione una opción:"]
[]
[{"$nulls":8},{"$f":"IF($I$8=\"Jorge\",\"¡Tiene razón!\",IF($I$8=\"David\",\"Vuelva a intentarlo...\",IF($I$8=\"Desiré\",\"No exactamente...\",IF($I$8=\" \",\" \",\" \"))))","v":" "}]
[]
[]
[]
[]
[null,"Etiquetas de fila","Suma de Unidades vendidas"]
[null,"Otoño",{"v":5425,"d":"5,425"}]
[null,"Primavera",{"v":4760,"d":"4,760"}]
[null,"Verano",{"v":3473,"d":"3,473"}]
[null,"Invierno",{"v":4100,"d":"4,100"}]
[null,"Total general",{"v":17758,"d":"17,758"}]

{"sheet":"21","index":21,"n_rows":14,"n_cols":10,"rows_kept":14}
["1. Haga clic en la celda B13 para activar la tabla dinámica denominada \"Suma de Unidades vendidas\".\n\n"]
["2. Presione ALT+JZ, L para abrir la lista de Campos de tabla dinámica. El enfoque predeterminado será el cuadro de texto Buscar: \"Escriba aquí las palabras para buscarlas\" y editarlas. No escriba nada; en su lugar, pulse una vez. NOTA: Si no se inicia la lista de campos, presione ALT+JZ y después L de nuevo."]
["3. Use las teclas de flecha y la barra espaciadora para expandir el ejemplo en una tabla dinámica vertical que tiene Temporadas a la izquierda y los Representantes de ventas con sangría bajo las Temporadas. Presione la tecla ESC para salir del panel Campos de tabla dinámica. "]
["Para continuar con este tutorial, presione CTRL+AVANZAR PÁGINA. Para ir a la hoja anterior, presione CTRL+RETROCEDER PÁGINA."]
[{"$nulls":9},{"$f":"IF(AND(B$18=\"Otoño\",$C$20=1272),\"Buen trabajo! Ha colocado un\",\" \")","v":" "}]
[{"$nulls":9},{"$f":"IF(AND(B$18=\"Otoño\",$C$20=1272),\"campo de fila secundario. Ahora\",\" \")","v":" "}]
[{"$nulls":9},{"$f":"IF(AND(B$18=\"Otoño\",$C$20=1272),\"desplácese hacia abajo y haga clic en Siguiente.\",\" \")","v":" "}]
[]
[]
[]
[]
[]
[null,"Suma de Unidades vendidas"]
[null,{"v":17758,"d":"17,758"}]

{"sheet":"22","index":22,"n_rows":14,"n_cols":10,"rows_kept":14}
["1. Haga clic en la celda B13 para activar la tabla dinámica denominada \"Suma de Unidades vendidas\"."]
["2. Presione ALT+JZ, L para abrir la lista de Campos de tabla dinámica. El enfoque predeterminado será el cuadro de texto Buscar: \"Escriba aquí las palabras para buscarlas\" y editarlas. No escriba nada; en su lugar, pulse una vez. NOTA: Si no se inicia la lista de campos, presione ALT+JZ y después L de nuevo."]
["3. Use las teclas de flecha y la barra espaciadora para modificar el ejemplo para que muestre cada producto en su propia fila y cada temporada en su propia columna."]
["Para continuar con este tutorial, presione CTRL+AVANZAR PÁGINA. Para ir a la hoja anterior, presione CTRL+RETROCEDER PÁGINA.",{"$nulls":8},{"$f":"IF(AND($B$21=\"Manzanas\",$G$17=1505),\"Buen trabajo! Ha colocado\",\" \")","v":" "}]
[{"$nulls":9},{"$f":"IF(AND($B$21=\"Manzanas\",$G$17=1505),\"un campo de fila en la parte izquierda,\",\" \")","v":" "}]
[{"$nulls":9},{"$f":"IF(AND($B$21=\"Manzanas\",$G$17=1505),\"y un campo de columna\",\" \")","v":" "}]
[{"$nulls":9},{"$f":"IF(AND($B$21=\"Manzanas\",$G$17=1505),\"con cuatro columnas nuevas. Desplácese\",\" \")","v":" "}]
[{"$nulls":9},{"$f":"IF(AND($B$21=\"Manzanas\",$G$17=1505),\"hacia abajo y haga clic en Siguiente...\",\" \")","v":" "}]
[]
[]
[]
[]
[null,"Suma de Unidades vendidas"]
[null,{"v":17758,"d":"17,758"}]

{"sheet":"23","index":23,"n_rows":18,"n_cols":18,"rows_kept":18}
["1. Haga clic en la celda B15 para activar la tabla dinámica denominada \"Suma de Unidades vendidas\".\n\n"]
["2. Presione ALT+JZ, L para abrir la lista de Campos de tabla dinámica. El enfoque predeterminado será el cuadro de texto Buscar: \"Escriba aquí las palabras para buscarlas\" y editarlas. No escriba nada; en su lugar, pulse una vez. NOTA: Si no se inicia la lista de campos, presione ALT+JZ y después L de nuevo."]
["3. Use las teclas de flecha, TAB y la barra espaciadora para modificar el ejemplo para que se muestren los Representantes de ventas a la izquierda con las temporadas con sangría debajo de ellos."]
["Para continuar con este tutorial, presione CTRL+AVANZAR PÁGINA. Para ir a la hoja anterior, presione CTRL+RETROCEDER PÁGINA."]
[{"$nulls":9},{"$f":"IF(AND($B$16=\"David\",$C$16=5036),\"Buen trabajo! Ahora es más\",\" \")","v":" "}]
[{"$nulls":9},{"$f":"IF(AND($B$16=\"David\",$C$16=5036),\"fácil leer los datos. Desplácese\",\" \")","v":" "}]
[{"$nulls":9},{"$f":"IF(AND($B$16=\"David\",$C$16=5036),\"hacia abajo y haga clic en Siguiente...\",\" \")","v":" "}]
{"$rows_empty":7}
[null,null,"Etiquetas de columna"]
[null,null,"David",{"$nulls":3},"Total David","Jorge",{"$nulls":3},"Total Jorge","Desiré",{"$nulls":3},"Total Desiré","Total general"]
[null,null,"Otoño","Primavera","Verano","Invierno",null,"Otoño","Primavera","Verano","Invierno",null,"Otoño","Primavera","Verano","Invierno"]
[null,"Suma de Unidades vendidas",933,{"v":1320,"d":"1,320"},{"v":1133,"d":"1,133"},{"v":1650,"d":"1,650"},{"v":5036,"d":"5,036"},{"v":3220,"d":"3,220"},{"v":2400,"d":"2,400"},{"v":1260,"d":"1,260"},{"v":1420,"d":"1,420"},{"v":8300,"d":"8,300"},{"v":1272,"d":"1,272"},{"v":1040,"d":"1,040"},{"v":1080,"d":"1,080"},{"v":1030,"d":"1,030"},{"v":4422,"d":"4,422"},{"v":17758,"d":"17,758"}]

{"sheet":"24","index":24,"n_rows":15,"n_cols":8,"rows_kept":15}
["1. Haga clic en la celda B13 para activar la tabla dinámica denominada \"Suma de Unidades vendidas\"."]
["2. Presione ALT+JZ, L para abrir la lista de Campos de tabla dinámica. El enfoque predeterminado será el cuadro de texto Buscar: \"Escriba aquí las palabras para buscarlas\" y editarlas. No escriba nada; en su lugar, pulse una vez. NOTA: Si no se inicia la lista de campos, presione ALT+JZ y después L de nuevo."]
["3. Use las teclas de flecha, TAB y la barra espaciadora para modificar el ejemplo para que los Representantes de ventas tengan sus propios campos de columna con las Temporadas a la izquierda y los Productos con sangría debajo."]
["4. Seleccione la celda I9 y seleccione cuántas uvas vendió David en invierno."]
["Para continuar con este tutorial, presione CTRL+AVANZAR PÁGINA. Para ir a la hoja anterior, presione CTRL+RETROCEDER PÁGINA."]
[]
[]
[{"$nulls":7},"Seleccione una opción:"]
[]
[{"$nulls":7},{"$f":"IF($H$9=400,\"¡Tiene razón!\",IF($H$9=530,\"Vuelva a intentarlo…\",IF($H$9=123,\"No exactamente…\",\" \")))","v":" "}]
[]
[]
[]
[null,"Suma de Unidades vendidas"]
[null,{"v":17758,"d":"17,758"}]

{"sheet":"Más información","index":25,"n_rows":8,"n_cols":1,"rows_kept":8}
["Buen trabajo. ¿No son geniales las tablas dinámicas?"]
["Pero le recomendamos que siga trabajando. Todavía hay cosas que descubrir..."]
["Más información sobre tablas dinámicas\nDescubra qué otras cosas puede hacer leyendo este artículo útil sobre las tablas dinámicas."]
["Sobre la actualización\nLea este artículo importante sobre cómo actualizar las tablas dinámicas. "]
["LinkedIn Learning\nCursos de vídeo para todos los niveles, desde principiante a avanzado. Vaya a su ritmo."]
["Comunidad\nPóngase en contacto con otros aficionados a Excel. Ellos pueden ayudarle, y usted a ellos."]
[]
[" "]